bitfinex/quotes_SOLUSD_20240829
["timestamp","ask_amount","ask_price","bid_price","bid_amount"]
[1724896514225,39.99720004,143.91,143.84,15.0408]
[1724896514407,13.04830004,143.89,143.84,15.0408]
[1724896517036,33.04830004,143.91,143.84,15.0408]
[1724896517334,20.0,143.91,143.84,15.0408]
[1724896517516,20.0,143.92,143.84,15.0408]
[1724896520724,20.0,143.92,143.86,15.4966]
[1724896521238,33.04830004,143.94,143.86,15.4966]
[1724896522915,13.04830004,143.92,143.86,15.4966]
[1724896529429,13.04830004,143.93,143.86,15.4966]
[1724896529634,20.0,143.92,143.86,15.4966]
[1724896540440,19.99480004,143.96,143.88,15.4048]
[1724896541258,13.04830004,143.96,143.88,15.4048]
[1724896541468,13.04830004,143.96,143.9,15.4048]
[1724896542853,20.0,143.95,143.9,15.4048]
[1724896544155,26.9469,143.95,143.9,15.4048]
[1724896546073,20.0,143.95,143.9,15.4048]
[1724896549855,20.0,143.96,143.9,15.4048]
[1724896552861,19.99380004,143.98,143.9,15.4048]
[1724896553376,20.0,143.97,143.9,15.4048]
[1724896555082,26.9461,143.97,143.9,15.4048]
[1724896557665,20.0,143.97,143.9,15.4048]
[1724896561181,20.0,143.97,143.91,6.4765]
[1724896561478,20.0,143.97,143.91,21.5918]
[1724896563084,9.78516409,144.01,143.92,16.2289]
[1724896563281,19.99280004,144.0,143.92,16.2289]
[1724896564381,9.78506409,144.01,143.94,16.2289]
[1724896564585,20.0,144.0,143.94,16.2289]
[1724896568001,1.21008903,144.11,144.0,6.111]
[1724896568288,6.9386,144.12,144.04,13.04830004]
[1724896568497,13.04830004,144.14,144.06,15.2106]
[1724896569182,13.04830004,144.14,144.07,7.49880668]
[1724896569367,13.04830004,144.14,144.07,6.111]
[1724896569884,19.98640004,144.14,144.07,6.111]
[1724896570872,0.25098,144.13,144.07,6.111]
[1724896571422,19.98640004,144.14,144.07,7.49813237]
[1724896571897,13.04830004,144.12,144.07,6.111]
[1724896578307,19.98700004,144.12,144.07,6.111]
[1724896578471,13.04830004,144.1,144.06,15.2106]
[1724896579174,45.25098,144.11,144.06,15.2106]
[1724896579586,19.98700004,144.12,144.06,15.2106]
[1724896579587,13.04830004,144.12,144.06,15.2106]
[1724896582297,19.98700004,144.12,144.06,15.2106]
[1724896583671,13.04830004,144.12,144.06,15.2106]
[1724896587307,13.04830004,144.1,144.06,15.2106]
[1724896587484,13.04830004,144.08,144.06,15.2106]
[1724896588999,0.12549,144.11,144.06,15.2106]
[1724896589206,33.04830004,144.11,144.06,15.2106]
[1724896590782,39.98750004,144.11,144.06,15.2106]
[1724896594013,39.98750004,144.11,144.06,15.13481523]
[1724896596001,33.04830004,144.11,144.06,15.13481523]
[1724896596179,20.0,144.11,144.06,15.13481523]
[1724896596379,20.0,144.12,144.06,15.13481523]
[1724896600195,13.04830004,144.11,144.06,15.13481523]
[1724896610203,6.9392,144.11,144.06,15.13481523]
[1724896610396,13.04830004,144.1,144.06,15.13481523]
[1724896611989,13.04830004,144.11,144.06,15.13481523]
[1724896616120,19.98750004,144.11,144.06,15.13481523]
[1724896616303,13.04830004,144.11,144.06,15.13481523]
[1724896617304,17.3423,144.16,144.06,15.13481523]
[1724896617305,13.04830004,144.07,144.06,15.13481523]
[1724896619018,13.04830004,144.07,144.04,6.146]
[1724896619722,13.04830004,144.07,144.03,16.3533]
[1724896620307,6.9406,144.08,144.03,16.3533]
[1724896620518,13.04830004,144.04,144.03,16.3533]
[1724896623822,13.04830004,144.06,144.03,16.3533]
[1724896630505,45.12549,144.07,144.03,16.3533]
[1724896630714,58.17379004,144.07,144.03,16.3533]
[1724896637010,58.04830004,144.07,144.03,16.3533]
[1724896637234,13.04830004,144.07,144.03,16.3533]
[1724896637737,6.9392,144.11,144.03,16.3533]
[1724896637917,20.0,144.1,144.03,16.3533]
[1724896638112,13.04830004,144.09,144.03,16.3533]
[1724896641035,45.25098,144.08,144.03,16.3533]
[1724896643121,13.04830004,144.07,144.03,16.3533]
[1724896643511,19.99110004,144.04,143.99,16.0769]
[1724896643718,13.04830004,144.0,143.99,16.0769]
[1724896645717,7.19408,144.03,143.99,16.0769]
[1724896645912,33.04830004,144.02,143.99,16.0769]
[1724896647252,13.04830004,144.02,143.99,16.0769]
[1724896649115,13.04830004,144.0,143.99,16.0769]
[1724896653717,13.04830004,144.02,143.99,16.0769]
[1724896655927,0.25098,144.03,143.99,16.0769]
[1724896656331,20.25098,144.03,143.99,16.0769]
[1724896657318,33.29928004,144.03,143.99,16.0769]
[1724896659530,40.24218004,144.03,143.99,16.0769]
[1724896659928,13.04830004,144.01,143.99,16.0769]
[1724896661127,13.04830004,144.01,143.9,22.5501]
[1724896661128,58.55130016,144.0,143.9,22.5501]
[1724896661331,71.60908,144.0,143.9,22.5501]
[1724896661542,6.9477,143.94,143.9,22.5501]
[1724896661746,13.04830004,143.92,143.9,16.2285]
[1724896662632,6.9477,143.94,143.9,16.2285]
[1724896666846,19.99530004,143.95,143.9,16.2285]
[1724896667145,20.0,143.94,143.9,16.2285]
[1724896669154,19.99530004,143.95,143.9,16.2285]
[1724896669349,20.0,143.94,143.9,16.2285]
[1724896670564,13.04830004,143.93,143.9,16.2285]
[1724896672535,26.9475,143.94,143.9,16.2285]
[1724896672745,39.99580004,143.94,143.9,16.2285]
[1724896674054,33.04830004,143.94,143.9,16.2285]
[1724896674235,20.0,143.94,143.9,16.2285]
[1724896679158,35.86612304,144.01,143.9,16.2285]
[1724896679344,13.04830004,143.98,143.91,6.0825]
[1724896680031,13.04830004,143.96,143.91,6.0825]
[1724896680842,13.04830004,143.93,143.9,16.2285]
[1724896682241,13.04830004,143.95,143.9,16.2285]
[1724896687946,13.04830004,143.93,143.9,16.2285]
[1724896688759,19.99510004,143.95,143.9,16.2285]
[1724896689241,13.04830004,143.95,143.9,16.2285]
[1724896691549,13.04830004,143.93,143.9,16.2285]
[1724896693455,19.99530004,143.95,143.9,16.2285]
[1724896699954,2.88953195,143.98,143.9,16.2285]
[1724896699955,13.04830004,143.91,143.9,16.2285]
[1724896700148,6.9486,143.92,143.83,23.2259]
[1724896700351,13.04830004,143.9,143.83,23.2259]
[1724896708964,19.99790004,143.9,143.83,23.2259]
[1724896709161,13.04830004,143.9,143.83,23.2259]
[1724896710860,68.59309,143.94,143.83,23.2259]
[1724896710861,13.04830004,143.86,143.83,23.2259]
[1724896711074,6.9502,143.88,143.83,23.2259]
[1724896711286,13.04830004,143.86,143.83,23.2259]
[1724896711589,13.04830004,143.84,143.83,16.621]
[1724896712269,19.99960004,143.86,143.83,16.621]
[1724896713189,13.04830004,143.84,143.79,22.3729]
[1724896713490,13.04830004,143.82,143.79,15.9098]
[1724896713673,13.04830004,143.81,143.79,15.9098]
[1724896715788,33.17379004,143.83,143.79,15.9098]
[1724896716893,20.0,143.83,143.79,15.9098]
[1724896717191,13.04830004,143.83,143.79,15.9098]
[1724896722287,20.0,143.84,143.79,15.9098]
[1724896722489,13.04830004,143.84,143.79,15.9098]
[1724896723992,27.07729,143.85,143.76,15.3676]
[1724896723993,13.04830004,143.8,143.76,15.3676]
[1724896726393,7.07809,143.83,143.76,15.3676]
[1724896726589,13.04830004,143.82,143.76,15.3676]
[1724896728295,0.12549,143.81,143.76,15.3676]
[1724896730000,13.04830004,143.8,143.76,15.3676]
[1724896733390,13.04830004,143.78,143.76,15.3676]
[1724896734602,13.04830004,143.78,143.73,15.7585]
[1724896735102,0.12549,143.77,143.73,15.7585]
[1724896735400,13.04830004,143.78,143.73,15.7585]
[1724896738895,45.25098,143.77,143.73,15.7585]
[1724896739283,13.04830004,143.78,143.73,15.7585]
[1724896741499,13.04830004,143.8,143.73,15.7585]
[1724896741701,20.0,143.79,143.73,15.7585]
[1724896745913,13.04830004,143.8,143.73,15.7585]
[1724896746115,20.0,143.79,143.73,15.7585]
[1724896748521,13.04830004,143.78,143.73,15.7585]
[1724896754715,13.04830004,143.76,143.73,15.7585]
[1724896757221,0.12549,143.77,143.73,15.7585]
[1724896757424,13.04830004,143.78,143.73,15.7585]
[1724896758915,0.12549,143.77,143.73,15.7585]
[1724896759800,13.04830004,143.78,143.73,15.7585]
[1724896766737,447.94200016,143.85,143.73,28.80680004]
[1724896766738,395.7488,143.85,143.73,28.80680004]
[1724896767031,13.04830004,143.82,143.73,28.80680004]
[1724896767209,27.20458,143.81,143.73,15.7585]
[1724896767409,13.04830004,143.8,143.73,15.7585]
[1724896770935,20.12549,143.81,143.73,28.80680004]
[1724896772230,20.0,143.81,143.73,28.80680004]
[1724896772435,20.0,143.81,143.74,15.0939]
[1724896775537,13.04830004,143.83,143.74,15.0939]
[1724896775745,20.12549,143.82,143.74,15.0939]
[1724896776529,20.12549,143.82,143.75,19.25090004]
[1724896776741,20.0,143.82,143.75,19.25090004]
[1724896778750,20.0,143.82,143.76,15.5504]
[1724896786430,26.9534,143.82,143.76,15.5504]
[1724896786642,20.0,143.82,143.76,15.5504]
[1724896790561,6.9537,143.81,143.76,15.5504]
[1724896791056,26.9535,143.82,143.76,15.5504]
[1724896791263,45.25098,143.81,143.76,15.5504]
[1724896791433,58.29928004,143.81,143.76,15.5504]
[1724896792164,65.25288004,143.81,143.76,15.5504]
[1724896793664,20.0,143.82,143.76,15.5504]
[1724896798768,26.9533,143.82,143.76,15.5504]
[1724896798973,58.29928004,143.81,143.76,15.5504]
[1724896800879,26.9533,143.82,143.76,15.5504]
[1724896800880,20.0,143.82,143.76,15.5504]
[1724896801783,45.25098,143.81,143.76,15.5504]
[1724896803275,45.12549,143.81,143.76,15.5504]
[1724896803582,26.9534,143.82,143.76,15.5504]
[1724896804868,20.0,143.82,143.76,15.5504]
[1724896807388,20.0,143.82,143.76,28.59870004]
[1724896807589,20.12549,143.83,143.76,28.59870004]
[1724896807965,20.0,143.83,143.76,28.59870004]
[1724896811964,20.0,143.83,143.76,15.5504]
[1724896819981,6.9517,143.85,143.77,13.04830004]
[1724896820189,20.0,143.84,143.78,15.8325]
[1724896824287,26.9524,143.84,143.78,15.8325]
[1724896824504,6.9528,143.83,143.78,15.8325]
[1724896824689,20.00200004,143.81,143.78,15.8325]
[1724896825097,6.9542,143.8,143.78,15.8325]
[1724896825297,6.9545,143.79,143.78,15.8325]
[1724896825602,20.00280004,143.79,143.75,6.2026]
[1724896825982,13.04830004,143.79,143.75,6.2026]
[1724896827501,6.9542,143.8,143.75,6.2026]
[1724896827709,6.9537,143.81,143.75,6.2026]
[1724896827889,0.12549,143.8,143.75,6.2026]
[1724896828201,58.17379004,143.82,143.75,6.2026]
[1724896828202,20.0,143.81,143.75,6.2026]
[1724896828798,20.0,143.81,143.75,19.25090004]
[1724896829005,20.0,143.82,143.76,15.2989]
[1724896829310,26.9531,143.82,143.76,15.2989]
[1724896832205,6.9541,143.8,143.76,15.2989]
[1724896832407,6.9537,143.81,143.76,15.2989]
[1724896832914,26.9532,143.82,143.76,15.2989]
[1724896835490,7.07939,143.81,143.76,15.2989]
[1724896835918,6.9539,143.81,143.76,15.2989]
[1724896839120,20.0,143.82,143.76,15.2989]
[1724896839418,20.0,143.84,143.76,15.2989]
[1724896840215,6.9526,143.83,143.76,15.2989]
[1724896840404,20.0,143.82,143.76,15.2989]
[1724896847897,396.0255,143.89,143.75,19.25090004]
[1724896847898,6.9515,143.86,143.79,29.09200004]
[1724896848103,6.9504,143.88,143.81,13.04830004]
[1724896848302,6.9504,143.88,143.82,15.5763]
[1724896848303,19.99870004,143.88,143.82,15.5763]
[1724896848623,6.9508,143.87,143.82,15.5763]
[1724896855031,6.9517,143.85,143.82,15.5763]
[1724896855222,13.17379004,143.88,143.82,15.5763]
[1724896855420,27.07629,143.87,143.82,15.5763]
[1724896857028,20.12549,143.87,143.82,15.5763]
[1724896860021,27.07619,143.87,143.82,15.5763]
[1724896860708,6.9513,143.86,143.82,15.5763]
[1724896860912,0.12549,143.85,143.82,15.5763]
[1724896865737,19.99960004,143.86,143.82,15.5763]
[1724896868544,6.9517,143.85,143.82,15.5763]
[1724896869345,58.17379004,143.84,143.78,21.8773]
[1724896869640,13.04830004,143.81,143.78,15.2504]
[1724896874556,0.12549,143.82,143.78,15.2504]
[1724896874852,20.0,143.82,143.78,15.2504]
[1724896877049,20.0,143.83,143.78,15.2504]
[1724896878941,6.9508,143.87,143.79,6.2083]
[1724896879189,19.99910004,143.87,143.79,6.2083]
[1724896879453,13.04830004,143.85,143.79,6.2083]
[1724896883747,13.04830004,143.83,143.79,6.2083]
[1724896883948,0.12549,143.82,143.79,6.2083]
[1724896885040,13.04830004,143.83,143.79,6.2083]
[1724896886639,7.20328,143.84,143.78,15.2504]
[1724896886640,13.04830004,143.81,143.78,15.2504]
[1724896889135,13.04830004,143.79,143.75,6.5753]
[1724896889535,52.07969,143.8,143.74,16.4975]
[1724896889536,13.04830004,143.77,143.74,16.4975]
[1724896896170,13.04830004,143.75,143.71,6.6649]
[1724896897154,0.12549,143.74,143.71,6.6649]
[1724896898862,13.04830004,143.73,143.7,15.7075]
[1724896900266,13.04830004,143.73,143.61,7.24914534]
[1724896900267,13.04830004,143.71,143.66,16.0501]
[1724896901465,45.25098,143.72,143.66,16.0501]
[1724896901688,0.12549,143.72,143.66,16.0501]
[1724896901847,33.04830004,143.74,143.66,16.0501]
[1724896902050,0.12549,143.73,143.66,16.0501]
[1724896902343,33.04830004,143.74,143.66,16.0501]
[1724896902546,20.0,143.74,143.68,21.7076]
[1724896902767,20.12549,143.75,143.68,21.7076]
[1724896903072,20.0,143.74,143.68,21.7076]
[1724896903455,13.04830004,143.73,143.68,21.7076]
[1724896908254,20.0,143.74,143.68,21.7076]
[1724896909461,20.0,143.74,143.68,21.63594786]
[1724896917181,2.83824488,143.78,143.68,21.63594786]
[1724896917484,13.04830004,143.78,143.69,28.87910004]
[1724896918084,20.0,143.77,143.7,16.53432313]
[1724896918287,20.0,143.77,143.71,0.6599772]
[1724896919069,20.0,143.77,143.7,15.8743]
[1724896919363,13.17379004,143.76,143.7,15.8743]
[1724896920681,13.04830004,143.74,143.7,15.8743]
[1724896921357,13.04830004,143.72,143.7,15.8743]
[1724896922479,20.00630004,143.72,143.7,15.8743]
[1724896923677,20.00630004,143.72,143.66,16.0075]
[1724896924259,13.04830004,143.7,143.66,16.0075]
[1724896931088,13.04830004,143.68,143.58,7.24902516]
[1724896931394,13.04830004,143.63,143.56,15.9962]
[1724896931567,13.04830004,143.61,143.56,15.9962]
[1724896932467,0.12549,143.6,143.56,15.9962]
[1724896932664,65.25098,143.6,143.56,15.9962]
[1724896933274,20.12549,143.6,143.56,15.9962]
[1724896933777,20.0,143.6,143.56,15.9962]
[1724896934091,20.01010004,143.65,143.56,29.04450004]
[1724896934399,65.12549,143.64,143.56,29.04450004]
[1724896935878,20.0,143.64,143.56,29.04450004]
[1724896936086,20.0,143.64,143.56,15.9962]
[1724896939303,26.962,143.64,143.56,15.9962]
[1724896940006,20.0,143.64,143.56,15.9962]
[1724896940295,6.9602,143.68,143.58,32.66132147]
[1724896941395,412.96132147,143.7,143.59,15.8004]
[1724896941698,419.92062147,143.7,143.59,15.8004]
[1724896941883,6.9595,143.69,143.59,15.8004]
[1724896942080,412.96132147,143.7,143.59,15.8004]
[1724896942081,32.66132147,143.68,143.59,15.8004]
[1724896942278,39.62262147,143.66,143.59,15.8004]
[1724896942800,0.12549,143.65,143.59,15.8004]
[1724896942974,20.12549,143.65,143.59,15.8004]
[1724896944408,27.08689,143.65,143.59,15.8004]
[1724896944783,6.962,143.64,143.59,15.8004]
[1724896944984,0.12549,143.63,143.59,15.8004]
[1724896945298,45.0,143.64,143.59,15.8004]
[1724896946004,84.62312147,143.64,143.59,15.8004]
[1724896947092,6.9623,143.63,143.59,15.8004]
[1724896947291,7.08849,143.62,143.59,15.8004]
[1724896947599,39.74981147,143.62,143.59,15.8004]
[1724896947897,20.0,143.61,143.59,15.8004]
[1724896952504,20.0,143.63,143.59,15.8004]
[1724896952915,26.9624,143.63,143.59,15.8004]
[1724896958201,20.0,143.63,143.59,15.8004]
[1724896960903,20.02611539,143.66,143.59,15.8004]
[1724896961604,6.961,143.66,143.59,28.86551539]
[1724896962888,20.0,143.65,143.59,28.86551539]
[1724896963409,20.0,143.65,143.59,15.8004]
[1724896964516,20.0,143.65,143.59,28.86551539]
[1724896964812,20.12549,143.67,143.6,6.58]
[1724896965208,27.08589,143.67,143.6,6.58]
[1724896966812,20.12549,143.67,143.6,6.58]
[1724896967207,20.0,143.67,143.6,6.58]
[1724896968396,7.50104502,143.72,143.62,13.06511539]
[1724896968712,6.9586,143.71,143.63,15.4851]
[1724896969241,6.9586,143.71,143.64,6.3258]
[1724896970313,20.0,143.7,143.64,6.3258]
[1724896971110,52.63216489,143.7,143.64,6.3258]
[1724896971411,52.21048,143.69,143.64,6.3258]
[1724896971805,6.96,143.68,143.64,6.3258]
[1724896972015,0.12549,143.67,143.63,15.4851]
[1724896972594,20.0,143.68,143.63,15.4851]
[1724896973799,26.9588,143.71,143.64,0.70062351]
[1724896974001,0.12549,143.7,143.64,0.70062351]
[1724896974194,0.12549,143.7,143.63,15.4851]
[1724896974703,7.08439,143.7,143.63,15.4851]
[1724896974906,20.0,143.69,143.63,15.4851]
[1724896982217,26.9594,143.69,143.63,15.4851]
[1724896982409,0.12549,143.68,143.63,15.4851]
[1724896982597,20.0,143.69,143.63,15.4851]
[1724896984257,26.9595,143.69,143.63,15.4851]
[1724896990401,20.0,143.69,143.64,7.80298348]
[1724896990608,6.9581,143.72,143.66,15.0328]
[1724896992222,6.9581,143.72,143.66,16.35779909]
[1724896992929,20.0,143.71,143.66,16.35779909]
[1724896995127,6.9566,143.75,143.69,15.8396]
[1724896997509,20.0,143.74,143.69,15.8396]
[1724896997702,13.04768936,143.72,143.69,15.8396]
[1724896998109,13.04768936,143.7,143.69,15.8396]
[1724896998317,20.00628936,143.71,143.69,15.8396]
[1724896998503,13.04768936,143.71,143.69,15.8396]
[1724896999506,20.00618936,143.71,143.69,15.8396]
[1724896999709,0.12549,143.7,143.65,16.6464]
[1724897001612,13.04768936,143.69,143.65,16.6464]
[1724897001817,6.96,143.68,143.65,16.6464]
[1724897002025,20.0,143.68,143.65,16.6464]
[1724897004316,13.04768936,143.67,143.61,16.6464]
[1724897006214,20.00818936,143.67,143.61,16.6464]
[1724897006834,6.9605,143.67,143.61,16.6464]
[1724897007034,20.00818936,143.67,143.61,16.6464]
[1724897012333,20.00928936,143.65,143.58,15.5398]
[1724897012937,13.04768936,143.65,143.58,15.5398]
[1724897015231,20.00908936,143.65,143.58,15.5398]
[1724897028550,7.21188,143.66,143.58,15.5398]
[1724897028754,20.0,143.65,143.58,15.5398]
[1724897031346,20.0,143.65,143.59,13.04768936]
[1724897031852,20.0,143.66,143.59,13.04768936]
[1724897036551,6.96,143.68,143.61,13.04768936]
[1724897036732,2.83643964,143.7,143.61,13.04768936]
[1724897036933,28.77318936,143.71,143.61,13.04768936]
[1724897037230,6.9592,143.7,143.61,13.04768936]
[1724897037837,20.0,143.69,143.61,13.04768936]
[1724897039035,20.0,143.69,143.61,16.05607388]
[1724897039239,20.0,143.69,143.61,13.04768936]
[1724897039240,6.9599,143.68,143.61,13.04768936]
[1724897039455,27.08499,143.69,143.61,13.04768936]
[1724897040356,20.0,143.69,143.61,13.04768936]
[1724897040653,9.24877261,143.73,143.63,13.04768936]
[1724897040863,45.25098,143.72,143.63,13.04768936]
[1724897041433,45.25098,143.72,143.62,22.7938]
[1724897041636,45.25098,143.72,143.63,13.04768936]
[1724897041854,20.0,143.71,143.63,13.04768936]
[1724897042356,26.9585,143.71,143.63,13.04768936]
[1724897045039,6.959,143.7,143.62,22.7938]
[1724897045241,13.17317936,143.69,143.62,22.7938]
[1724897047255,0.12549,143.69,143.62,35.84148936]
[1724897049155,0.12549,143.69,143.63,1.39227219]
[1724897050554,40.00618936,143.71,143.62,35.84148936]
[1724897051785,20.0,143.71,143.64,13.04768936]
[1724897051950,20.0,143.71,143.65,1.13282941]
[1724897052751,20.0,143.71,143.64,13.04768936]
[1724897053966,26.9585,143.71,143.64,13.04768936]
[1724897055137,40.00618936,143.71,143.62,22.7938]
[1724897055363,40.00618936,143.71,143.62,35.84148936]
[1724897063065,20.0,143.71,143.64,13.04768936]
[1724897063269,20.0,143.72,143.64,13.04768936]
[1724897063854,26.958,143.72,143.64,13.04768936]
[1724897070868,6.9585,143.71,143.62,22.7938]
[1724897071046,6.9585,143.71,143.62,35.84148936]
[1724897072865,6.9585,143.71,143.62,22.7938]
[1724897073061,6.9585,143.71,143.62,35.84148936]
[1724897073062,6.71487768,143.71,143.62,35.84148936]
[1724897075972,40.00578936,143.72,143.62,35.84148936]
[1724897076668,40.00578936,143.72,143.63,1.38971614]
[1724897076871,20.0,143.72,143.64,13.04768936]
[1724897077054,20.12549,143.73,143.64,13.04768936]
[1724897077465,27.08339,143.73,143.64,13.04768936]
[1724897077975,6.958,143.72,143.64,13.04768936]
[1724897078155,20.0,143.71,143.64,13.04768936]
[1724897078555,20.0,143.71,143.65,15.5686]
[1724897078756,20.0,143.72,143.65,15.5686]
[1724897090054,13.04768936,143.67,143.62,6.4217]
[1724897090679,6.9589,143.7,143.62,6.4217]
[1724897090983,20.0,143.69,143.62,19.46938936]
[1724897091560,20.0,143.7,143.62,19.46938936]
[1724897094577,26.959,143.7,143.62,19.46938936]
[1724897095871,13.04768936,143.69,143.62,6.4217]
[1724897096055,13.04768936,143.67,143.62,6.4217]
[1724897096467,20.0,143.7,143.62,6.4217]
[1724897096682,13.17317936,143.71,143.62,6.4217]
[1724897096888,26.9589,143.7,143.62,6.4217]
[1724897097381,13.04768936,143.69,143.62,6.4217]
[1724897097577,20.00728936,143.69,143.62,6.4217]
[1724897098062,26.959,143.7,143.62,6.4217]
[1724897098371,20.0,143.7,143.62,19.46938936]
[1724897098576,26.959,143.7,143.62,19.46938936]
[1724897099179,20.0,143.7,143.62,19.46938936]
[1724897100570,52.19075744,143.78,143.64,29.42088936]
[1724897100571,69.57945744,143.78,143.64,29.42088936]
[1724897100883,13.04768936,143.73,143.65,1.39193349]
[1724897101085,13.04768936,143.73,143.64,29.42088936]
[1724897101278,20.0,143.72,143.64,29.42088936]
[1724897104363,20.0,143.72,143.65,1.3860879]
[1724897104567,26.958,143.72,143.64,16.3732]
[1724897106987,26.958,143.72,143.65,13.04768936]
[1724897107170,13.04768936,143.73,143.65,13.04768936]
[1724897107375,6.957,143.74,143.67,15.9675]
[1724897107693,20.0,143.73,143.67,15.9675]
[1724897114188,20.0,143.73,143.67,29.01518936]
[1724897116293,6.9566,143.75,143.67,29.01518936]
[1724897116597,23.93384256,143.78,143.7,15.1442]
[1724897116598,13.04768936,143.78,143.7,15.1442]
[1724897116796,20.0,143.77,143.7,15.1442]
[1724897116996,6.9569,143.75,143.7,15.1442]
[1724897119498,6.956,143.76,143.7,15.1442]
[1724897119693,20.0,143.75,143.7,15.1442]
[1724897119883,20.0,143.75,143.7,21.6013]
[1724897122517,6.9546,143.79,143.7,21.6013]
[1724897122799,2.87747222,143.8,143.71,13.04768936]
[1724897122800,6.9552,143.78,143.71,13.04768936]
[1724897122997,26.9552,143.78,143.7,21.6013]
[1724897123174,26.9552,143.78,143.71,13.04768936]
[1724897124410,6.9555,143.77,143.7,21.6013]
[1724897125494,40.00288936,143.78,143.7,21.6013]
[1724897127387,26.9552,143.78,143.71,13.04768936]
[1724897128076,26.9552,143.78,143.7,21.6013]
[1724897129800,26.9552,143.78,143.71,13.04768936]
[1724897133005,26.92040529,143.78,143.71,13.04768936]
[1724897139807,26.92040529,143.78,143.72,15.1156]
[1724897140005,13.04768936,143.81,143.72,15.1156]
[1724897140308,6.9541,143.8,143.74,6.1992]
[1724897141507,20.0,143.79,143.74,6.1992]
[1724897143428,26.9545,143.79,143.74,6.1992]
[1724897143626,13.04768936,143.77,143.72,15.1156]
[1724897143913,13.04768936,143.75,143.72,15.1156]
[1724897144108,13.04768936,143.73,143.68,15.2213]
[1724897144493,20.00528936,143.73,143.68,15.2213]
[1724897151024,7.08259,143.74,143.68,15.2213]
[1724897151318,20.0,143.73,143.68,15.2213]
[1724897158922,33.04768936,143.73,143.68,15.2213]
[1724897159130,33.04768936,143.73,143.6,10.05645755]
[1724897159131,6.959,143.7,143.64,15.4838]
[1724897159431,13.04768936,143.67,143.64,15.4838]
[1724897159629,6.9599,143.68,143.64,15.4838]
[1724897159928,20.0,143.69,143.64,15.4838]
[1724897160130,26.9595,143.69,143.64,15.4838]
[1724897160303,13.17317936,143.68,143.64,15.4838]
[1724897161122,20.0,143.69,143.64,15.4838]
[1724897161323,20.00668936,143.7,143.64,15.4838]
[1724897161507,20.0,143.69,143.64,15.4838]
[1724897161704,23.4664,143.76,143.64,15.4838]
[1724897161904,6.9571,143.74,143.66,13.04768936]
[1724897162121,20.0,143.73,143.66,13.04768936]
[1724897162321,20.0,143.73,143.67,15.1954]
[1724897162522,6.9571,143.74,143.67,15.1954]
[1724897163215,12.62636214,143.8,143.69,6.4752]
[1724897163616,13.04768936,143.78,143.69,6.4752]
[1724897163821,6.9555,143.77,143.69,6.4752]
[1724897165432,6.9551,143.78,143.7,28.26918936]
[1724897165618,6.9551,143.78,143.72,13.04768936]
[1724897167021,13.04768936,143.8,143.72,13.04768936]
[1724897167022,20.0,143.77,143.72,13.04768936]
[1724897167225,20.00208936,143.8,143.72,13.04768936]
[1724897167226,26.9546,143.79,143.72,13.04768936]
[1724897171212,20.0,143.79,143.75,15.6947]
[1724897171416,389.6,143.81,143.75,23.49192917]
[1724897171728,396.5537,143.81,143.75,23.49192917]
[1724897171937,396.5537,143.81,143.75,22.1008]
[1724897173930,20.0,143.8,143.75,22.1008]
[1724897174315,396.5537,143.81,143.75,22.1008]
[1724897174516,20.0,143.8,143.75,22.1008]
[1724897175717,6.9532,143.82,143.75,22.1008]
[1724897175917,20.0,143.81,143.75,22.1008]
[1724897176844,20.0,143.81,143.76,13.04768936]
[1724897178943,20.0,143.82,143.76,13.04768936]
[1724897179612,20.0,143.82,143.77,1.16934906]
[1724897179814,20.0,143.82,143.76,13.04768936]
[1724897180436,26.9532,143.82,143.75,22.1008]
[1724897181243,6.9536,143.81,143.75,22.1008]
[1724897185421,6.9541,143.8,143.75,22.1008]